lending/lending_fUSD_20250808
["ID","MTS","AMOUNT","RATE_DAILY","PERIOD"]
[378006438,1754665851061,-255.832727,0.00019,2]
[378006439,1754665851070,-255.832727,0.00019,2]
[378006440,1754665851079,-255.832727,0.00019,2]
[378006441,1754665851088,-255.832727,0.00019,2]
[378006442,1754665851098,-255.832727,0.00019,2]
[378006443,1754665851107,-151.0,0.00019,2]
[378006444,1754665851116,-151.811768,0.00019,2]
[378006445,1754665851125,-151.0,0.00019,2]
[378006446,1754665851134,-151.0,0.00019,2]
[378006447,1754665851144,-278.62822602,0.00019,2]
[378006448,1754665851153,-5261.369985,0.00019,2]
[378006449,1754665851163,-177.967364,0.00019,2]
[378006450,1754665851172,-5261.369985,0.00019,2]
[378006451,1754665851182,-151.0,0.00019,2]
[378006452,1754665851191,-177.967364,0.00019,2]
[378006453,1754665851200,-5261.369985,0.00019,2]
[378006454,1754665851209,-177.967364,0.00019,2]
[378006455,1754665851218,-5261.369985,0.00019,2]
[378006456,1754665851227,-177.967364,0.00019,2]
[378006457,1754665851235,-151.0,0.00019,2]
[378006458,1754665851245,-177.967364,0.00019,2]
[378006459,1754665851254,-226.329466,0.00019,2]
[378006460,1754665851263,-5261.369985,0.00019,2]
[378006461,1754665851273,-177.967364,0.00019,2]
[378006462,1754665851282,-5261.369985,0.00019,2]
[378006463,1754665851292,-5261.369985,0.00019,2]
[378006464,1754665851301,-177.967364,0.00019,2]
[378006465,1754665851310,-5261.369985,0.00019,2]
[378006466,1754665851319,-177.967364,0.00019,2]
[378006467,1754665851328,-1000.0,0.00019,2]
[378006468,1754665851337,-151.0,0.00019,2]
[378006469,1754665851346,-151.0,0.00019,2]
[378006470,1754665851356,-151.0,0.00019,2]
[378006471,1754665851365,-898.15218,0.00019,2]
[378006472,1754665851375,-151.0,0.00019,2]
[378006473,1754665851385,-151.0,0.00019,2]
[378006474,1754665851394,-264.726106,0.00019,2]
[378006475,1754665851403,-151.0,0.00019,2]
[378006476,1754665851413,-151.0,0.00019,2]
[378006477,1754665851422,-151.0,0.00019,2]
[378006478,1754665851431,-151.0,0.00019,2]
[378006479,1754665851440,-218.556623,0.00019,2]
[378006480,1754665851450,-151.0,0.00019,2]
[378006481,1754665851459,-218.556623,0.00019,2]
[378006482,1754665851468,-218.556623,0.00019,2]
[378006483,1754665851478,-151.0,0.00019,2]
[378006484,1754665851487,-218.556623,0.00019,2]
[378006485,1754665851497,-151.0,0.00019,2]
[378006486,1754665851506,-151.0,0.00019,2]
[378006487,1754665851515,-151.0,0.00019,2]
[378006488,1754665851524,-218.556623,0.00019,2]
[378006489,1754665851534,-218.556623,0.00019,2]
[378006490,1754665851544,-151.0,0.00019,2]
[378006491,1754665851553,-151.0,0.00019,2]
[378006492,1754665851562,-218.556623,0.00019,2]
[378006493,1754665851572,-218.556623,0.00019,2]
[378006494,1754665851581,-178.807506,0.00019,2]
[378006495,1754665851591,-178.807506,0.00019,2]
[378006496,1754665851600,-178.807506,0.00019,2]
[378006497,1754665851609,-178.807506,0.00019,2]
[378006498,1754665851619,-500.0,0.00019,2]
[378006499,1754665851628,-500.0,0.00019,2]
[378006500,1754665851640,-151.0,0.00019,2]
[378006501,1754665851649,-500.0,0.00019,2]
[378006502,1754665851660,-156.464331,0.00019,2]
[378006503,1754665851669,-178.807506,0.00019,2]
[378006504,1754665851678,-151.0,0.00019,2]
[378006505,1754665851687,-500.0,0.00019,2]
[378006506,1754665851696,-178.807506,0.00019,2]
[378006507,1754665851705,-500.0,0.00019,2]
[378006508,1754665851714,-151.0,0.00019,2]
[378006509,1754665851723,-178.807506,0.00019,2]
[378006510,1754665851732,-500.0,0.00019,2]
[378006511,1754665851742,-151.0,0.00019,2]
[378006512,1754665851751,-178.807506,0.00019,2]
[378006513,1754665851761,-203.618454,0.00019,2]
[378006514,1754665851770,-203.618454,0.00019,2]
[378006515,1754665851779,-203.618454,0.00019,2]
[378006516,1754665851789,-203.618454,0.00019,2]
[378006517,1754665851798,-203.618454,0.00019,2]
[378006518,1754665851807,-203.618454,0.00019,2]
[378006519,1754665851816,-221.994005,0.00019,2]
[378006520,1754665851825,-151.0,0.00019,2]
[378006521,1754665851834,-151.0,0.00019,2]
[378006522,1754665851843,-151.0,0.00019,2]
[378006523,1754665851852,-151.0,0.00019,2]
[378006524,1754665851861,-151.0,0.00019,2]
[378006525,1754665851871,-151.0,0.00019,2]
[378006526,1754665851879,-151.0,0.00019,2]
[378006527,1754665851890,-153.954972,0.00019,2]
[378006528,1754665851899,-151.0,0.00019,2]
[378006529,1754665851908,-151.0,0.00019,2]
[378006530,1754665851918,-151.0,0.00019,2]
[378006531,1754665851927,-151.0,0.00019,2]
[378006532,1754665851937,-888.103447,0.00019,2]
[378006533,1754665851946,-888.103447,0.00019,2]
[378006534,1754665851956,-888.103447,0.00019,2]
[378006535,1754665851966,-151.0,0.00019,2]
[378006536,1754665851976,-151.0,0.00019,2]
[378006537,1754665851986,-151.0,0.00019,2]
[378006538,1754665851996,-888.103447,0.00019,2]
[378006539,1754665852005,-888.103447,0.00019,2]
[378006540,1754665852016,-151.0,0.00019,2]
[378006541,1754665852026,-888.103447,0.00019,2]
[378006542,1754665852035,-151.0,0.00019,2]
[378006543,1754665852046,-151.0,0.00019,2]
[378006544,1754665852055,-151.0,0.00019,2]
[378006545,1754665852064,-151.0,0.00019,2]
[378006546,1754665852073,-151.0,0.00019,2]
[378006547,1754665852083,-151.0,0.00019,2]
[378006548,1754665852092,-155.52926,0.00019,2]
[378006549,1754665852101,-151.0,0.00019,2]
[378006550,1754665852110,-151.0,0.00019,2]
[378006551,1754665852119,-151.0,0.00019,2]
[378006552,1754665852128,-151.0,0.00019,2]
[378006553,1754665852138,-151.0,0.00019,2]
[378006554,1754665852147,-151.0,0.00019,2]
[378006555,1754665852156,-151.0,0.00019,2]
[378006556,1754665852166,-151.0,0.00019,2]
[378006557,1754665852175,-151.0,0.00019,2]
[378006558,1754665852185,-151.0,0.00019,2]
[378006559,1754665852194,-273.764196,0.00019,2]
[378006560,1754665852203,-5000.0,0.00019,5]
[378006561,1754665852213,-151.0,0.00019019,2]
[378006562,1754665852223,-161.910598,0.00019019,2]
[378006563,1754665852232,-153.063705,0.00019019,2]
[378006564,1754665852242,-151.0,0.00019019,2]
[378006565,1754665852252,-151.0,0.00019019,2]
[378006566,1754665852261,-151.0,0.00019019,2]
[378006567,1754665852270,-1279.58,0.00019026,2]
[378006568,1754665852279,-400.0,0.00019027,2]
[378006569,1754665852290,-224.02650647,0.00019027,2]
[378006570,1754665852299,-495.89,0.00019027,2]
[378006571,1754665852309,-400.0,0.00019027,2]
[378006572,1754665852319,-400.0,0.00019027,2]
[378006573,1754665852336,-400.0,0.00019027,2]
[378006574,1754665852355,-400.0,0.00019027,2]
[378006575,1754665852365,-458.95,0.00019027,2]
[378006576,1754665852374,-296.1478599,0.00019027,2]
[378006577,1754665852386,-400.0,0.00019027,2]
[378006578,1754665852395,-400.0,0.00019027,2]
[378006579,1754665852406,-565.26,0.00019027,2]
[378006580,1754665852415,-400.0,0.00019027,2]
[378006581,1754665852425,-400.0,0.00019027,2]
[378006582,1754665852434,-432.45,0.00019027,2]
[378006583,1754665852444,-400.0,0.00019027,2]
[378006584,1754665852453,-400.0,0.00019027,2]
[378006585,1754665852463,-465.44,0.00019027,2]
[378006586,1754665852472,-400.0,0.00019027,2]
[378006587,1754665852482,-400.0,0.00019027,2]
[378006588,1754665852491,-400.0,0.00019027,2]
[378006589,1754665852501,-400.0,0.00019027,2]
[378006590,1754665852512,-151.0,0.00019027,2]
[378006591,1754665852522,-476.53,0.00019027,2]
[378006592,1754665852532,-256.080378,0.00019027,2]
[378006593,1754665852544,-400.0,0.00019027,2]
[378006594,1754665852553,-593.67,0.00019027,2]
[378006595,1754665852562,-400.0,0.00019027,2]
[378006596,1754665852571,-151.0,0.00019027,2]
[378006597,1754665852581,-400.0,0.00019027,2]
[378006598,1754665852591,-497.06,0.00019027,2]
[378006599,1754665852599,-400.0,0.00019027,2]
[378006600,1754665852608,-504.76,0.00019027,2]
[378006601,1754665852618,-151.0,0.00019027,2]
[378006602,1754665852627,-400.0,0.00019027,2]
[378006603,1754665852641,-400.0,0.00019027,2]
[378006604,1754665852650,-565.2,0.00019027,2]
[378006605,1754665852659,-151.0,0.00019027,2]
[378006606,1754665852668,-400.0,0.00019027,2]
[378006607,1754665852678,-400.0,0.00019027,2]
[378006608,1754665852688,-417.06134396,0.00019027,2]
[378006609,1754665852698,-400.0,0.00019027,2]
[378006610,1754665852710,-400.0,0.00019027,2]
[378006611,1754665852721,-400.0,0.00019027,2]
[378006612,1754665852732,-596.46,0.00019027,2]
[378006613,1754665852741,-400.0,0.00019027,2]
[378006614,1754665852751,-151.5905602,0.00019027,2]
[378006615,1754665852760,-457.11,0.00019027,2]
[378006616,1754665852769,-428.78,0.00019027,2]
[378006617,1754665852778,-400.0,0.00019027,2]
[378006618,1754665852789,-400.0,0.00019027,2]
[378006619,1754665852799,-400.0,0.00019027,2]
[378006620,1754665852808,-151.0,0.00019027,2]
[378006621,1754665852819,-400.0,0.00019027,2]
[378006622,1754665852828,-400.0,0.00019027,2]
[378006623,1754665852838,-400.0,0.00019027,2]
[378006624,1754665852847,-400.0,0.00019027,2]
[378006625,1754665852856,-1345.86,0.00019027,2]
[378006626,1754665852865,-632.06,0.00019027,2]
[378006627,1754665852875,-400.0,0.00019027,2]
[378006628,1754665852884,-400.0,0.00019027,2]
[378006629,1754665852893,-444.74,0.00019027,2]
[378006630,1754665852902,-400.0,0.00019027,2]
[378006631,1754665852911,-752.21,0.00019027,2]
[378006632,1754665852920,-400.0,0.00019027,2]
[378006633,1754665852929,-151.0,0.00019027,2]
[378006634,1754665852939,-501.05,0.00019027,2]
[378006635,1754665852948,-151.0,0.00019027,2]
[378006636,1754665852957,-151.0,0.00019027,2]
[378006637,1754665852967,-420.23,0.00019027,2]
[378006638,1754665852976,-1263.68,0.00019027,2]
[378006639,1754665852986,-400.0,0.00019027,2]
[378006640,1754665852995,-151.0,0.00019027,2]
[378006641,1754665853005,-400.0,0.00019027,2]
[378006642,1754665853015,-151.0,0.00019027,2]
[378006643,1754665853025,-194.659064,0.00019027,2]
[378006644,1754665853036,-194.659064,0.00019027,2]
[378006645,1754665853049,-400.0,0.00019027,2]
[378006646,1754665853058,-721.41,0.00019027,2]
[378006647,1754665853068,-450.92,0.00019027,2]
[378006648,1754665853077,-151.0,0.00019027,2]
[378006649,1754665853086,-400.0,0.00019027,2]
[378006650,1754665853094,-420.59,0.00019027,2]
[378006651,1754665853102,-151.0,0.00019027,2]
[378006652,1754665853111,-1220.4,0.00019027,2]
[378006653,1754665853121,-400.0,0.00019027,2]
[378006654,1754665853132,-400.0,0.00019027,2]
[378006655,1754665853141,-151.0,0.00019027,2]
[378006656,1754665853151,-1284.62,0.00019027,2]
[378006657,1754665853161,-151.0,0.00019027,2]
[378006658,1754665853170,-400.0,0.00019027,2]
[378006659,1754665853180,-176.990212,0.00019027,2]
[378006660,1754665853190,-476.8,0.00019027,2]
[378006661,1754665853200,-614.98,0.00019027,2]
[378006662,1754665853210,-176.990212,0.00019027,2]
[378006663,1754665853218,-1077.52,0.00019027,2]
[378006664,1754665853227,-400.0,0.00019027,2]
[378006665,1754665853237,-400.0,0.00019027,2]
[378006666,1754665853247,-616.12,0.00019027,2]
[378006667,1754665853256,-1124.34,0.00019027,2]
[378006668,1754665853264,-890.1,0.00019027,2]
[378006669,1754665853272,-151.0,0.00019027,2]
[378006670,1754665853280,-151.0,0.00019027,2]
[378006671,1754665853288,-400.0,0.00019027,2]
[378006672,1754665853297,-400.0,0.00019027,2]
[378006673,1754665853306,-400.0,0.00019027,2]
[378006674,1754665853321,-1039.6,0.00019027,2]
[378006675,1754665853336,-400.0,0.00019027,2]
[378006676,1754665853346,-151.0,0.00019027,2]
[378006677,1754665853357,-400.0,0.00019027,2]
[378006678,1754665853367,-525.99,0.00019027,2]
[378006679,1754665853377,-400.0,0.00019027,2]
[378006680,1754665853388,-400.0,0.00019027,2]
[378006681,1754665853398,-400.0,0.00019027,2]
[378006682,1754665853407,-400.0,0.00019027,2]
[378006683,1754665853419,-535.58,0.00019027,2]
[378006684,1754665853428,-1335.94,0.00019027,2]
[378006685,1754665853437,-151.0,0.00019027,2]
[378006686,1754665853446,-4227.18,0.00019027,2]
[378006687,1754665853455,-457.02,0.00019027,2]
[378006688,1754665853465,-771.541501,0.00019027,2]
[378006689,1754665853474,-619.61,0.00019027,2]
[378006690,1754665853483,-771.541501,0.00019027,2]
[378006691,1754665853492,-400.0,0.00019027,2]
[378006692,1754665853502,-428.02,0.00019027,2]
[378006693,1754665853512,-400.0,0.00019027,2]
[378006694,1754665853522,-400.0,0.00019027,2]
[378006695,1754665853531,-463.88,0.00019027,2]
[378006696,1754665853540,-400.0,0.00019027,2]
[378006697,1754665853550,-1072.18,0.00019027,2]
[378006698,1754665853559,-151.0,0.00019027,2]
[378006699,1754665853568,-402.2,0.00019027,2]
[378006700,1754665853577,-558.58,0.00019027,2]
[378006701,1754665853587,-1273.16,0.00019027,2]
[378006702,1754665853596,-151.0,0.00019027,2]
[378006703,1754665853606,-400.0,0.00019027,2]
[378006704,1754665853615,-757.14,0.00019027,2]
[378006705,1754665853624,-400.0,0.00019027,2]
[378006706,1754665853637,-300.0,0.00019027,2]
[378006707,1754665853647,-151.0,0.00019027,2]
[378006708,1754665853656,-734.74,0.00019027,2]
[378006709,1754665853665,-400.0,0.00019027,2]
[378006710,1754665853675,-1247.21,0.00019027,2]
[378006711,1754665853684,-507.07,0.00019027,2]
[378006712,1754665853694,-400.0,0.00019027,2]
[378006713,1754665853703,-1774.87,0.00019027,2]
[378006714,1754665853712,-617.97,0.00019027,2]
[378006715,1754665853723,-400.0,0.00019027,2]
[378006716,1754665853732,-572.54,0.00019027,2]
[378006717,1754665853742,-151.0,0.00019027,2]
[378006718,1754665853751,-151.0,0.00019027,2]
[378006719,1754665853761,-400.0,0.00019027,2]
[378006720,1754665853770,-400.0,0.00019027,2]
[378006721,1754665853780,-1538.06,0.00019027,2]
[378006722,1754665853789,-582.05,0.00019027,2]
[378006723,1754665853799,-474.97,0.00019027,2]
[378006724,1754665853809,-635.55,0.00019027,2]
[378006725,1754665853819,-1285.93,0.00019027,2]
[378006726,1754665853828,-400.0,0.00019027,2]
[378006727,1754665853838,-407.06,0.00019027,2]
[378006728,1754665853848,-992.47,0.00019027,2]
[378006729,1754665853858,-400.0,0.00019027,2]
[378006730,1754665853868,-498.62,0.00019027,2]
[378006731,1754665853879,-468.72,0.00019027,2]
[378006732,1754665853888,-537.34,0.00019027,2]
[378006733,1754665853898,-368.599366,0.00019027,2]
[378006734,1754665853908,-685.13,0.00019027,2]
[378006735,1754665853918,-601.37,0.00019027,2]
[378006736,1754665853927,-368.599366,0.00019027,2]
[378006737,1754665853937,-1701.51,0.00019027,2]
[378006738,1754665853947,-426.2,0.00019027,2]
[378006739,1754665853957,-1148.86,0.00019027,2]
[378006740,1754665853967,-435.54,0.00019027,2]
[378006741,1754665853978,-627.73,0.00019027,2]
[378006742,1754665853987,-541.26,0.00019027,2]
[378006743,1754665853997,-400.0,0.00019027,2]
[378006744,1754665854007,-400.0,0.00019027,2]
[378006745,1754665854017,-544.69,0.00019027,2]
[378006746,1754665854027,-552.95,0.00019027,2]
[378006747,1754665854037,-556.11,0.00019027,2]
[378006748,1754665854048,-255.832727,0.00019027,2]
[378006749,1754665854058,-1662.34,0.00019027,2]
[378006750,1754665854068,-4395.77,0.00019027,2]
[378006751,1754665854077,-255.832727,0.00019027,2]
[378006752,1754665854087,-4291.86,0.00019027,2]
[378006753,1754665854097,-628.69,0.00019027,2]
[378006754,1754665854107,-1973.62,0.00019027,2]
[378006755,1754665854116,-151.0,0.00019027,2]
[378006756,1754665854126,-485.2,0.00019027,2]
[378006757,1754665854136,-177.967364,0.00019027,2]
[378006758,1754665854145,-5261.369985,0.00019027,2]
[378006759,1754665854156,-5261.369985,0.00019027,2]
[378006760,1754665854166,-496.84,0.00019027,2]
[378006761,1754665854175,-177.967364,0.00019027,2]
[378006762,1754665854184,-1320.6,0.00019027,2]
[378006763,1754665854194,-400.0,0.00019027,2]
[378006764,1754665854204,-400.0,0.00019027,2]
[378006765,1754665854214,-1446.98,0.00019027,2]
[378006766,1754665854224,-1053.64,0.00019027,2]
[378006767,1754665854234,-151.0,0.00019027,2]
[378006768,1754665854245,-2547.2,0.00019027,2]
[378006769,1754665854255,-1803.06,0.00019027,2]
[378006770,1754665854265,-430.11,0.00019027,2]
[378006771,1754665854275,-1665.08,0.00019027,2]
[378006772,1754665854285,-409.39,0.00019027,2]
[378006773,1754665854296,-400.0,0.00019027,2]
[378006774,1754665854306,-1820.22,0.00019027,2]
[378006775,1754665854316,-400.0,0.00019027,2]
[378006776,1754665854328,-400.0,0.00019027,2]
[378006777,1754665854339,-400.0,0.00019027,2]
[378006778,1754665854349,-1417.64,0.00019027,2]
[378006779,1754665854359,-151.0,0.00019027,2]
[378006780,1754665854370,-1789.44,0.00019027,2]
[378006781,1754665854381,-1595.52,0.00019027,2]
[378006782,1754665854392,-151.0,0.00019027,2]
[378006783,1754665854403,-218.556623,0.00019027,2]
[378006784,1754665854413,-218.556623,0.00019027,2]
[378006785,1754665854423,-1552.56,0.00019027,2]
[378006786,1754665854432,-400.0,0.00019027,2]
[378006787,1754665854444,-1635.45,0.00019027,2]
[378006788,1754665854454,-400.0,0.00019027,2]
[378006789,1754665854463,-1673.89,0.00019027,2]
[378006790,1754665854472,-400.0,0.00019027,2]
[378006791,1754665854482,-520.06,0.00019027,2]
[378006792,1754665854492,-1181.99,0.00019027,2]
[378006793,1754665854502,-6096.74,0.00019027,2]
[378006794,1754665854511,-1279.58,0.00019027,2]
[378006795,1754665854521,-1183.61,0.00019027,2]
[378006796,1754665854530,-400.0,0.00019027,2]
[378006797,1754665854542,-178.807506,0.00019027,2]
[378006798,1754665854552,-453.76,0.00019027,2]
[378006799,1754665854561,-178.807506,0.00019027,2]
[378006800,1754665854571,-151.0,0.00019027,2]
[378006801,1754665854580,-494.71,0.00019027,2]
[378006802,1754665854590,-1993.56,0.00019027,2]
[378006803,1754665854599,-400.0,0.00019027,2]
[378006804,1754665854609,-400.0,0.00019027,2]
[378006805,1754665854619,-2152.99,0.00019027,2]
[378006806,1754665854633,-472.5,0.00019027,2]
[378006807,1754665854651,-666.95,0.00019027,2]
[378006808,1754665854669,-4150.4,0.00019027,2]
[378006809,1754665854682,-1093.53,0.00019027,2]
[378006810,1754665854693,-400.0,0.00019027,2]
[378006811,1754665854703,-400.0,0.00019027,2]
[378006812,1754665854714,-841.05,0.00019027,2]
[378006813,1754665854724,-1410.47,0.00019027,2]
[378006814,1754665854734,-203.618454,0.00019027,2]
[378006815,1754665854745,-408.58,0.00019027,2]
[378006816,1754665854756,-400.0,0.00019027,2]
[378006817,1754665854766,-688.53,0.00019027,2]
[378006818,1754665854776,-203.618454,0.00019027,2]
[378006819,1754665854787,-8642.12,0.00019027,2]
[378006820,1754665854798,-400.0,0.00019027,2]
[378006821,1754665854808,-180.49675063,0.00019027,2]
[378006822,1754665854818,-1161.85,0.00019027,2]
[378006823,1754665854830,-400.0,0.00019027,2]
[378006824,1754665854840,-151.0,0.00019027,2]
[378006825,1754665854850,-8537.39,0.00019027,2]
[378006826,1754665854861,-581.1,0.00019027,2]
[378006827,1754665854871,-151.0,0.00019027,2]
[378006828,1754665854880,-400.0,0.00019027,2]
[378006829,1754665854891,-151.0,0.00019027,2]
[378006830,1754665854901,-769.6,0.00019027,2]
[378006831,1754665854911,-400.0,0.00019027,2]
[378006832,1754665854921,-888.103447,0.00019027,2]
[378006833,1754665854931,-537.79,0.00019027,2]
[378006834,1754665854941,-151.0,0.00019027,2]
[378006835,1754665854951,-764.64,0.00019027,2]
[378006836,1754665854961,-698.84,0.00019027,2]
[378006837,1754665854971,-888.103447,0.00019027,2]
[378006838,1754665854982,-151.0,0.00019027,2]
[378006839,1754665854992,-626.66,0.00019027,2]
[378006840,1754665855002,-7053.97,0.00019027,2]
[378006841,1754665855013,-410.12,0.00019027,2]
[378006842,1754665855023,-1437.71,0.00019027,2]
[378006843,1754665855032,-151.0,0.00019027,2]
[378006844,1754665855043,-976.31,0.00019027,2]
[378006845,1754665855052,-400.0,0.00019027,2]
[378006846,1754665855062,-697.09,0.00019027,2]
[378006847,1754665855073,-1060.66,0.00019027,2]
[378006848,1754665855084,-2121.64,0.00019027,2]
[378006849,1754665855093,-1994.9,0.00019027,2]
[378006850,1754665855104,-151.0,0.00019027,2]
[378006851,1754665855113,-400.0,0.00019027,2]
[378006852,1754665855123,-151.0,0.00019027,2]
[378006853,1754665855134,-1365.08,0.00019027,2]
[378006854,1754665855145,-400.0,0.00019027,2]
[378006855,1754665855155,-421.03,0.00019027,2]
[378006856,1754665855164,-6688.1,0.00019027,2]
[378006857,1754665855174,-1720.38,0.00019027,2]
[378006858,1754665855184,-1882.77,0.00019027,2]
[378006859,1754665855195,-1742.97,0.00019027,2]
[378006860,1754665855204,-400.0,0.00019027,2]
[378006861,1754665855214,-151.0,0.00019028,2]
[378006862,1754665855223,-151.0,0.00019028,2]
[378006863,1754665855232,-151.0,0.00019028,2]
[378006864,1754665855242,-151.0,0.00019028,2]
[378006865,1754665855251,-151.0,0.00019028,2]
[378006866,1754665855261,-151.0,0.00019028,2]
[378006867,1754665855271,-266.40777,0.00019028,2]
[378006868,1754665855281,-151.0,0.00019028,2]
[378006869,1754665855293,-151.0,0.00019028,2]
[378006870,1754665855303,-400.0,0.00019028,2]
[378006871,1754665855313,-400.0,0.00019028,2]
[378006872,1754665855323,-151.0,0.00019028,2]
[378006873,1754665855333,-205.32114,0.00019028,2]
[378006874,1754665855342,-151.0,0.00019028,2]
[378006875,1754665855352,-205.32114,0.00019028,2]
[378006876,1754665855361,-153.79242,0.00019028,2]
[378006877,1754665855370,-151.0,0.00019028,2]
[378006878,1754665855380,-400.0,0.00019028,2]
[378006879,1754665855392,-151.0,0.00019028,2]
[378006880,1754665855401,-151.0,0.00019028,2]
[378006881,1754665855412,-793.22,0.00019028,2]
[378006882,1754665855421,-151.0,0.00019028,2]
[378006883,1754665855431,-188.393509,0.00019028,2]
[378006884,1754665855440,-188.393509,0.00019028,2]
[378006885,1754665855450,-151.0,0.00019028,2]
[378006886,1754665855459,-151.0,0.00019028,2]
[378006887,1754665855469,-151.0,0.00019028,2]
[378006888,1754665855479,-400.0,0.00019028,2]
[378006889,1754665855488,-151.0,0.00019028,2]
[378006890,1754665855498,-151.0,0.00019028,2]
[378006891,1754665855508,-151.0,0.00019028,2]
[378006892,1754665855517,-400.0,0.00019028,2]
[378006893,1754665855527,-228.93407,0.00019028,2]
[378006894,1754665855536,-151.0,0.00019028,2]
[378006895,1754665855547,-400.0,0.00019028,2]
[378006896,1754665855557,-157.480043,0.00019028,2]
[378006897,1754665855566,-400.0,0.00019028,2]
[378006898,1754665855576,-400.0,0.00019028,2]
[378006899,1754665855586,-151.0,0.00019028,2]
[378006900,1754665855595,-151.0,0.00019028,2]
[378006901,1754665855605,-151.0,0.00019028,2]
[378006902,1754665855615,-151.0,0.00019028,2]
[378006903,1754665855624,-400.0,0.00019028,2]
[378006904,1754665855640,-151.0,0.00019028,2]
[378006905,1754665855874,-151.0,0.00019028,2]
[378006906,1754665855927,-151.0,0.00019028,2]
[378006907,1754665855938,-208.591109,0.00019028,2]
[378006908,1754665855949,-151.0,0.00019028,2]
[378006909,1754665855958,-151.0,0.00019028,2]
[378006910,1754665855968,-493.97,0.00019028,2]
[378006911,1754665855977,-151.0,0.00019028,2]
[378006912,1754665855986,-151.0,0.00019028,2]
[378006913,1754665855997,-151.0,0.00019028,2]
[378006914,1754665856007,-151.0,0.00019028,2]
[378006915,1754665856016,-151.0,0.00019028,2]
[378006916,1754665856026,-151.0,0.00019028,2]
[378006917,1754665856036,-151.0,0.00019028,2]
[378006918,1754665856046,-151.0,0.00019028,2]
[378006919,1754665856055,-151.0,0.00019028,2]
[378006920,1754665856065,-151.0,0.00019028,2]
[378006921,1754665856075,-151.226389,0.00019028,2]
[378006922,1754665856084,-151.0,0.00019028,2]
[378006923,1754665856094,-406.416501,0.00019028,2]
[378006924,1754665856103,-406.416501,0.00019028,2]
[378006925,1754665856113,-406.416501,0.00019028,2]
[378006926,1754665856123,-406.416501,0.00019028,2]
[378006927,1754665856133,-294.672971,0.00019028,2]
[378006928,1754665856142,-294.672971,0.00019028,2]
[378006929,1754665856152,-1903.86,0.00019028,2]
[378006930,1754665856161,-400.0,0.00019028,2]
[378006931,1754665856171,-151.0,0.00019028,2]
[378006932,1754665856180,-1894.5,0.00019028,2]
[378006933,1754665856190,-508.12,0.00019028,2]
[378006934,1754665856199,-400.0,0.00019028,2]
[378006935,1754665856209,-936.56,0.00019028,2]
[378006936,1754665856219,-514.13,0.00019028,2]
[378006937,1754665856228,-151.0,0.00019028,2]